bitfinex/quotes_BTCUSD_20250205
["timestamp","ask_amount","ask_price","bid_price","bid_amount"]
[1738748711339,0.95880407,97300.0,97299.0,0.43713355]
[1738748711543,0.95880407,97300.0,97299.0,0.51583355]
[1738748712922,0.95880407,97300.0,97299.0,0.43713355]
[1738748713717,0.44492407,97300.0,97299.0,0.43713355]
[1738748714519,0.42592407,97300.0,97299.0,0.43713355]
[1738748715918,0.42588407,97300.0,97299.0,0.43713355]
[1738748717952,0.33799102,97300.0,97299.0,0.43713355]
[1738748718281,0.18025622,97300.0,97299.0,0.43713355]
[1738748718402,0.01476127,97300.0,97299.0,0.89593355]
[1738748718606,0.01453677,97300.0,97299.0,0.89593355]
[1738748718806,0.01453677,97300.0,97299.0,0.87857355]
[1738748719019,0.01453677,97300.0,97299.0,0.80643355]
[1738748719745,0.0791,97326.0,97325.0,0.304122]
[1738748719933,0.0791,97326.0,97325.0,0.40662565]
[1738748720065,0.08504598,97326.0,97325.0,0.40662565]
[1738748720270,0.0791,97326.0,97325.0,0.40662565]
[1738748721700,0.08504598,97326.0,97325.0,0.40662565]
[1738748722317,0.08495461,97326.0,97325.0,0.25662565]
[1738748723911,0.07900863,97326.0,97325.0,0.25662565]
[1738748724110,0.0497245,97331.0,97330.0,0.154114]
[1738748724371,0.0497245,97331.0,97330.0,0.25661765]
[1738748724533,0.0002245,97331.0,97330.0,0.25661765]
[1738748724965,0.0002245,97331.0,97330.0,0.27961765]
[1738748726256,0.0002245,97331.0,97330.0,0.25661765]
[1738748732932,0.0002245,97331.0,97330.0,0.26397765]
[1738748737087,0.0002245,97331.0,97330.0,0.25661765]
[1738748737259,0.00617048,97331.0,97330.0,0.26393765]
[1738748738910,0.0002245,97331.0,97330.0,0.26393765]
[1738748739688,0.0002245,97331.0,97330.0,0.28693765]
[1738748749552,0.03674398,97346.0,97344.0,0.154091]
[1738748749800,0.03674398,97346.0,97345.0,0.25659465]
[1738748750979,0.08694598,97348.0,97347.0,0.154087]
[1738748751227,0.00594598,97353.0,97352.0,0.15408]
[1738748751469,0.00594598,97353.0,97352.0,0.25658365]
[1738748751708,0.0815,97354.0,97352.0,0.10250365]
[1738748751937,0.00594598,97360.0,97359.0,0.154068]
[1738748752155,0.00594598,97360.0,97359.0,0.25657165]
[1738748753878,0.00594598,97360.0,97359.0,0.10250365]
[1738748754079,0.16001298,97360.0,97359.0,0.10250365]
[1738748754279,0.24311298,97360.0,97359.0,0.10250365]
[1738748754521,0.24311298,97360.0,97359.0,0.10982365]
[1738748755166,0.24311298,97360.0,97359.0,0.10250365]
[1738748755763,0.24333726,97360.0,97359.0,0.10250365]
[1738748756655,0.08927026,97360.0,97359.0,0.10250365]
[1738748756846,0.08927026,97360.0,97359.0,0.25657165]
[1738748757194,0.08927026,97360.0,97359.0,0.10250365]
[1738748757603,0.08927026,97360.0,97359.0,0.25657165]
[1738748757803,0.08332428,97360.0,97359.0,0.25657165]
[1738748758414,0.08927026,97360.0,97359.0,0.25657165]
[1738748758614,0.08332428,97360.0,97359.0,0.25657165]
[1738748758825,0.00022428,97360.0,97359.0,0.25657165]
[1738748764592,0.00013293,97360.0,97359.0,0.26701001]
[1738748769303,0.00607891,97360.0,97359.0,0.10250365]
[1738748769508,0.28334591,97360.0,97359.0,0.10982365]
[1738748769710,0.00594598,97336.0,97334.0,0.154108]
[1738748769915,0.00594598,97334.0,97327.0,0.205492]
[1738748770121,0.00128419,97339.0,97331.0,0.154113]
[1738748770325,0.00594598,97352.0,97351.0,0.304081]
[1738748770618,0.00594598,97356.0,97355.0,0.154075]
[1738748770972,0.00594598,97352.0,97351.0,0.15408]
[1738748771175,0.16002598,97352.0,97351.0,0.10982365]
[1738748771519,0.16002598,97352.0,97337.0,0.154103]
[1738748771520,0.00594598,97338.0,97337.0,0.154103]
[1738748771719,0.00594598,97338.0,97337.0,0.26392665]
[1738748772352,0.08234598,97338.0,97337.0,0.10982365]
[1738748772551,0.08234598,97338.0,97337.0,0.26392665]
[1738748772976,0.08234598,97338.0,97337.0,0.10982365]
[1738748773774,0.08234598,97338.0,97337.0,0.26392665]
[1738748774392,0.00594598,97343.0,97337.0,0.10982365]
[1738748774619,0.0275,97351.0,97339.0,0.15]
[1738748774756,0.0784,97352.0,97351.0,0.154081]
[1738748774757,0.08434598,97352.0,97351.0,0.154081]
[1738748774953,0.00594598,97354.0,97353.0,0.154078]
[1738748775159,0.00594598,97354.0,97353.0,0.10250365]
[1738748775356,0.236769,97359.0,97353.0,0.25658065]
[1738748775699,0.00594598,97355.0,97354.0,0.10250365]
[1738748776104,0.00594598,97355.0,97354.0,0.25657965]
[1738748776672,0.00590598,97355.0,97354.0,0.10250365]
[1738748777084,0.08310598,97345.0,97344.0,0.11336641]
[1738748777287,0.23719698,97345.0,97344.0,0.10982365]
[1738748777542,0.08310598,97345.0,97344.0,0.10982365]
[1738748777772,0.0772,97345.0,97344.0,0.26391565]
[1738748777920,0.08310598,97345.0,97344.0,0.10982365]
[1738748778123,0.08293978,97345.0,97344.0,0.10982365]
[1738748780825,0.23703078,97345.0,97344.0,0.10982365]
[1738748781238,0.00590598,97336.0,97335.0,0.11336641]
[1738748781408,0.00590598,97336.0,97335.0,0.10982365]
[1738748784566,0.1242,97335.0,97326.0,0.11347321]
[1738748784732,0.20548,97333.0,97326.0,0.0001068]
[1738748784934,0.234919,97327.0,97326.0,0.0001068]
[1738748787586,0.283619,97327.0,97326.0,0.0001068]
[1738748787788,0.443619,97327.0,97326.0,0.0001068]
[1738748788014,0.6486263,97327.0,97326.0,0.0001068]
[1738748788800,0.66763677,97327.0,97326.0,0.0001068]
[1738748790692,0.67763677,97327.0,97326.0,0.0001068]
[1738748791300,1.19136677,97327.0,97326.0,0.0001068]
[1738748792930,1.51536677,97327.0,97326.0,0.0001068]
[1738748793944,1.40286312,97327.0,97326.0,0.0001068]
[1738748794200,1.41286312,97327.0,97326.0,0.0001068]
[1738748796204,1.39385265,97327.0,97326.0,0.0001068]
[1738748798133,1.45546265,97327.0,97326.0,0.0001068]
[1738748798538,1.43546265,97327.0,97326.0,0.0001068]
[1738748798717,1.14031516,97327.0,97326.0,0.0001068]
[1738748799833,1.121349,97327.0,97326.0,0.0001068]
[1738748800804,1.22385265,97327.0,97326.0,0.0001068]
[1738748807033,1.38385265,97327.0,97326.0,0.0001068]
[1738748807795,1.41285501,97327.0,97326.0,0.0001068]
[1738748808217,1.58256501,97327.0,97326.0,0.0001068]
[1738748808425,1.57696866,97327.0,97326.0,0.0001068]
[1738748808828,1.56696866,97327.0,97326.0,0.0001068]
[1738748809760,1.5479663,97327.0,97326.0,0.0001068]
[1738748811727,1.44546265,97327.0,97326.0,0.0001068]
[1738748811934,1.46450236,97327.0,97326.0,0.0001068]
[1738748814043,1.47450236,97327.0,97326.0,0.0001068]
[1738748814657,1.47450236,97327.0,97326.0,8e-07]
[1738748815736,1.47450236,97327.0,97305.0,0.08218573]
[1738748815737,0.154152,97306.0,97305.0,0.08218573]
[1738748815961,0.991882,97306.0,97305.0,0.08218573]
[1738748816161,0.154162,97300.0,97299.0,0.0001069]
[1738748816324,0.66917685,97300.0,97299.0,0.0001069]
[1738748816525,0.667892,97300.0,97299.0,0.0001069]
[1738748817794,0.68693171,97300.0,97299.0,0.0001069]
[1738748819812,1.01093171,97300.0,97299.0,0.0001069]
[1738748820291,0.991892,97300.0,97299.0,0.0001069]
[1738748822509,0.83773,97300.0,97299.0,0.0001069]
[1738748823040,0.83773,97300.0,97299.0,0.1542699]
[1738748823292,0.83773,97300.0,97299.0,0.0001069]
[1738748823471,0.991892,97300.0,97299.0,0.0001069]
[1738748823649,0.83773,97300.0,97299.0,0.0001069]
[1738748824258,0.991892,97300.0,97299.0,0.0001069]
[1738748828028,1.11346511,97300.0,97299.0,0.0001069]
[1738748828286,1.19076511,97300.0,97299.0,0.0001069]
[1738748828453,1.19076511,97300.0,97278.0,0.00732]
[1738748828454,0.154195,97279.0,97278.0,0.00732]
[1738748828613,0.66921013,97279.0,97278.0,0.00732]
[1738748828817,0.667925,97279.0,97278.0,0.00732]
[1738748829215,0.667925,97279.0,97266.0,0.13088573]
[1738748829216,0.205596,97278.0,97266.0,0.13088573]
[1738748829479,0.2056,97276.0,97268.0,0.11336641]
[1738748829629,0.00128519,97275.0,97268.0,0.11336641]
[1738748830239,0.154213,97268.0,97267.0,0.00732]
[1738748830450,0.205613,97270.0,97267.0,0.00732]
[1738748830659,0.154212,97269.0,97267.0,0.00732]
[1738748831067,0.205613,97270.0,97267.0,0.00732]
[1738748831263,0.154213,97268.0,97267.0,0.00732]
[1738748831463,0.667943,97268.0,97267.0,0.00732]
[1738748832162,0.667943,97268.0,97260.0,0.19286641]
[1738748832386,0.51373,97268.0,97261.0,0.10982365]
[1738748832589,0.154214,97267.0,97261.0,0.10982365]
[1738748832745,0.154216,97266.0,97261.0,0.10982365]
[1738748832947,0.51373,97266.0,97261.0,0.10982365]
[1738748834159,0.51373,97266.0,97261.0,0.10250365]
[1738748834335,0.51373,97266.0,97262.0,0.00732]
[1738748834519,0.49473,97266.0,97262.0,0.00732]
[1738748834911,0.648946,97266.0,97262.0,0.00732]
[1738748835114,0.154222,97262.0,97261.0,0.0001069]
[1738748835313,0.65023733,97262.0,97261.0,0.0001069]
[1738748835514,0.648952,97262.0,97261.0,0.0001069]
[1738748836306,0.75145565,97262.0,97261.0,0.0001069]
[1738748836560,0.648952,97262.0,97261.0,0.0001069]
[1738748837643,1.198452,97262.0,97261.0,0.0001069]
[1738748837844,1.198412,97262.0,97261.0,0.0001069]
[1738748838188,1.30091565,97262.0,97261.0,0.0001069]
[1738748838973,1.3199021,97262.0,97261.0,0.0001069]
[1738748839173,1.42240575,97262.0,97261.0,0.0001069]
[1738748841654,1.3199021,97262.0,97261.0,0.0001069]
[1738748842931,1.3815121,97262.0,97261.0,0.0001069]
[1738748845387,1.36252565,97262.0,97261.0,0.0001069]
[1738748846442,1.36275015,97262.0,97261.0,0.0001069]
[1738748848857,1.3817066,97262.0,97261.0,0.0001069]
[1738748852235,1.1986365,97262.0,97261.0,0.0001069]
[1738748852664,1.0486365,97262.0,97261.0,0.0001069]
[1738748853776,0.9731365,97262.0,97261.0,0.0001069]
[1738748855271,0.99210746,97262.0,97261.0,0.0001069]
[1738748858355,1.02251684,97262.0,97261.0,0.0001069]
[1738748858656,1.20542049,97262.0,97261.0,0.0001069]
[1738748859181,0.154257,97240.0,97239.0,0.0001068]
[1738748859362,0.972987,97240.0,97239.0,0.0001068]
[1738748862555,0.98342498,97240.0,97239.0,0.0001068]
[1738748864221,1.00245808,97240.0,97239.0,0.0001068]
[1738748865324,0.9920201,97240.0,97239.0,0.0001068]
[1738748865694,0.8377631,97240.0,97239.0,0.0001068]
[1738748866335,0.8377631,97240.0,97239.0,0.0810068]
[1738748866755,0.81873,97240.0,97239.0,0.0810068]
[1738748867341,0.972987,97240.0,97239.0,0.0001068]
[1738748868084,0.972237,97240.0,97239.0,0.0001068]
[1738748868485,0.81798,97240.0,97239.0,0.0001068]
[1738748869017,0.972237,97240.0,97239.0,0.0001068]
[1738748870132,0.81798,97240.0,97239.0,0.0001068]
[1738748870330,0.648987,97240.0,97239.0,0.0001068]
[1738748872393,0.49473,97240.0,97239.0,0.0001068]
[1738748874562,0.648987,97240.0,97239.0,0.0001068]
[1738748874760,0.49473,97240.0,97239.0,0.0001068]
[1738748877136,0.648987,97240.0,97239.0,0.0001068]
[1738748879798,0.49473,97240.0,97239.0,0.0001068]
[1738748881254,0.648987,97240.0,97239.0,0.0001068]
[1738748882501,0.82909065,97240.0,97239.0,0.0001068]
[1738748882838,0.726587,97240.0,97239.0,0.0001068]
[1738748883367,0.77612767,97240.0,97239.0,0.0001068]
[1738748884955,0.78645798,97240.0,97239.0,0.0001068]
[1738748885674,0.75597141,97240.0,97239.0,0.0001068]
[1738748888061,1.07922141,97240.0,97239.0,0.0001068]
[1738748889743,1.10968189,97240.0,97239.0,0.0001068]
[1738748890822,1.1099066,97240.0,97239.0,0.0001068]
[1738748891019,1.07944612,97240.0,97239.0,0.0001068]
[1738748895147,1.00184612,97240.0,97239.0,0.0001068]
[1738748895682,1.0322932,97240.0,97239.0,0.0001068]
[1738748895883,0.86770589,97240.0,97239.0,0.0001068]
[1738748896284,0.86770589,97240.0,97239.0,0.0074268]
[1738748896665,0.86770589,97240.0,97239.0,0.0001068]
[1738748896868,0.81820471,97240.0,97239.0,0.0074268]
[1738748898498,0.81816471,97240.0,97239.0,0.0074268]
[1738748899447,0.97242171,97240.0,97239.0,0.0074268]
[1738748900048,0.64917171,97240.0,97239.0,0.0074268]
[1738748900793,0.49491471,97240.0,97239.0,0.0074268]
[1738748900998,0.64917171,97240.0,97239.0,0.0074268]
[1738748901622,0.49491471,97240.0,97239.0,0.0074268]
[1738748903310,0.64917171,97240.0,97239.0,0.0074268]
[1738748903616,0.49491471,97240.0,97239.0,0.0001068]
[1738748903817,0.49491471,97240.0,97239.0,0.0074268]
[1738748908296,0.49491471,97240.0,97239.0,0.10993045]
[1738748909280,0.49491471,97240.0,97239.0,0.26418945]
[1738748909480,0.49491471,97240.0,97239.0,0.34108945]
[1738748909910,0.49491471,97240.0,97239.0,0.18683045]
[1738748912590,0.49491471,97240.0,97239.0,0.10993045]
[1738748916182,0.49491471,97240.0,97239.0,0.38516945]
[1738748916445,0.49491471,97240.0,97239.0,0.56548945]
[1738748917777,0.49491471,97240.0,97239.0,0.58676276]
[1738748918549,0.49491471,97240.0,97239.0,0.56548945]
[1738748919547,0.47591471,97240.0,97239.0,0.56548945]
[1738748922826,0.47591471,97240.0,97239.0,0.33368945]
[1738748923413,0.47591471,97240.0,97239.0,0.48368945]
[1738748924752,0.45691471,97240.0,97239.0,0.48368945]
[1738748924952,0.45691471,97240.0,97239.0,0.33368945]
[1738748925567,0.45691471,97240.0,97239.0,0.10261045]
[1738748925763,0.45691471,97240.0,97239.0,0.10993045]
[1738748926181,0.61117171,97240.0,97239.0,0.10993045]
[1738748926381,0.69347171,97240.0,97239.0,0.0001068]
[1738748926574,0.69347171,97240.0,97239.0,0.0074268]
[1738748928605,0.69347171,97240.0,97239.0,0.0001068]
[1738748928812,0.76661437,97240.0,97239.0,0.0001068]
[1738748929012,0.74337171,97240.0,97239.0,0.0001068]
[1738748931001,0.79271629,97240.0,97239.0,0.0001068]
[1738748932001,0.76235039,97240.0,97239.0,0.0001068]
[1738748934866,0.232874,97229.0,97228.0,0.0001068]
[1738748935065,0.154289,97220.0,97211.0,0.08218573]
[1738748935271,0.610979,97220.0,97217.0,0.00732]
[1738748935643,0.45669,97220.0,97219.0,0.11579475]
[1738748936046,0.45669,97220.0,97219.0,0.27008475]
[1738748937706,0.45669,97220.0,97219.0,0.11579475]
[1738748939608,0.43769,97220.0,97219.0,0.11579475]
[1738748940250,0.43769,97220.0,97219.0,0.31668475]
[1738748940568,0.43769,97220.0,97219.0,0.47400475]
[1738748940771,0.43769,97220.0,97219.0,0.60699963]
[1738748943088,0.43769,97220.0,97219.0,0.57770475]
[1738748943738,0.43769,97220.0,97219.0,0.49700475]
[1738748943971,0.43769,97220.0,97219.0,0.47400475]
[1738748944710,0.41869,97220.0,97219.0,0.47400475]
[1738748946955,0.41869,97220.0,97219.0,0.49700475]
[1738748948106,0.41891471,97220.0,97219.0,0.49700475]
[1738748949223,0.41891471,97220.0,97219.0,0.48968475]
[1738748949445,0.41891471,97220.0,97219.0,0.49700475]
[1738748949646,0.39991471,97220.0,97219.0,0.49700475]
[1738748952519,0.39991471,97220.0,97219.0,0.45040475]
[1738748952695,0.39991471,97220.0,97219.0,0.27008475]
[1738748952872,0.39991471,97220.0,97219.0,0.27740475]
[1738748954576,0.38091471,97220.0,97219.0,0.27740475]
[1738748954786,0.38091471,97220.0,97219.0,0.30040475]
[1738748954980,0.38091471,97220.0,97219.0,0.45040475]
[1738748955391,0.38091471,97220.0,97219.0,0.53220475]
[1738748955670,0.38091471,97220.0,97219.0,0.58040475]
[1738748957901,0.38091471,97220.0,97219.0,0.61122933]
[1738748958109,0.36034271,97220.0,97219.0,0.63122933]
[1738748958758,0.00022471,97220.0,97219.0,0.63122933]
[1738748959569,0.06359515,97255.0,97223.0,0.01]
[1738748959746,0.06359515,97255.0,97254.0,0.154235]
[1738748959946,0.0756,97260.0,97254.0,0.10250365]
[1738748960263,0.0756,97260.0,97255.0,0.25673665]
[1738748960468,0.0756,97260.0,97256.0,0.154231]
[1738748960690,0.0756,97260.0,97257.0,0.10250365]
[1738748960831,0.0756,97260.0,97257.0,0.25673265]
[1738748961034,0.0756,97260.0,97258.0,0.154228]
[1738748961237,0.0756,97260.0,97259.0,0.10982365]
[1738748961700,0.0756,97260.0,97259.0,0.26405065]
[1738748963016,0.0002245,97262.0,97261.0,0.154224]
[1738748963153,0.0002245,97262.0,97261.0,0.25672765]
[1738748964170,0.0002245,97262.0,97261.0,0.40672765]
[1738748964611,0.0609245,97272.0,97271.0,0.154208]
[1738748964814,0.0609245,97272.0,97271.0,0.25671165]
[1738748965012,0.0609245,97272.0,97271.0,0.10250365]
[1738748965220,0.0609245,97272.0,97261.0,0.15]
[1738748965399,0.154213,97269.0,97262.0,0.25672465]
[1738748965605,0.154209,97271.0,97264.0,0.154219]
[1738748965803,0.154209,97271.0,97265.0,0.10250365]
[1738748966271,0.154211,97269.0,97265.0,0.10250365]
[1738748966415,0.00128516,97268.0,97265.0,0.10250365]
[1738748966805,0.00128516,97271.0,97266.0,0.154216]
[1738748967046,0.00128516,97271.0,97267.0,0.10250365]
[1738748967264,0.0609245,97272.0,97267.0,0.10250365]
[1738748967597,0.0609245,97272.0,97271.0,0.154208]
[1738748967809,0.0609245,97272.0,97268.0,0.205617]
[1738748968014,0.0609245,97272.0,97271.0,0.25671165]
[1738748968189,0.0492,97284.0,97272.0,0.154206]
[1738748968431,0.00128502,97283.0,97273.0,0.10250365]
[1738748968629,0.0824,97283.0,97276.0,0.154199]
[1738748968743,0.0824,97283.0,97277.0,0.10250365]
[1738748968942,0.0824,97283.0,97282.0,0.15419]
[1738748969988,0.0824,97283.0,97278.0,0.205596]
[1738748970198,0.0824,97283.0,97280.0,0.154194]
[1738748970401,0.0824,97283.0,97282.0,0.15419]
[1738748970621,0.0824,97283.0,97282.0,0.25669365]
[1738748971062,0.0824,97283.0,97282.0,0.10250365]
[1738748971425,0.0824,97283.0,97256.0,0.22864]
[1738748971622,0.083,97277.0,97253.0,0.15]
[1738748971851,0.154202,97275.0,97274.0,0.00732]
[1738748972002,0.083,97277.0,97274.0,0.0071538]
[1738748972226,0.083,97277.0,97275.0,0.10250365]
[1738748972421,0.083,97277.0,97276.0,0.1542]
[1738748972663,0.083,97277.0,97276.0,0.25670365]
[1738748973906,0.083,97277.0,97276.0,0.10250365]
[1738748974119,0.083,97277.0,97276.0,0.25670365]
[1738748974703,0.083,97277.0,97276.0,0.10250365]
[1738748976229,0.083,97277.0,97264.0,0.205625]
[1738748976384,0.229802,97275.0,97274.0,0.00732]
[1738748977049,0.0756,97275.0,97274.0,0.00732]
[1738748977233,0.2310871,97275.0,97274.0,0.00732]
[1738748977434,0.229802,97275.0,97274.0,0.00732]
[1738748978519,0.229802,97275.0,97232.0,0.3203]
[1738748978520,0.046,97258.0,97250.0,0.11336641]
[1738748978721,0.154231,97257.0,97251.0,0.10250365]
[1738748978922,0.154238,97252.0,97251.0,0.10250365]
[1738748979177,0.046,97258.0,97249.0,0.00732]
[1738748979178,0.0751,97251.0,97249.0,0.00732]
[1738748979378,0.0751,97251.0,97241.0,0.15]
[1738748979507,0.0751,97251.0,97250.0,0.00732]
[1738748979709,0.0561,97251.0,97250.0,0.00732]
[1738748980158,0.21034,97251.0,97250.0,0.00732]
[1738748980674,0.0561,97251.0,97250.0,0.00732]
[1738748981002,0.21034,97251.0,97250.0,0.00732]
[1738748981314,0.0561,97251.0,97250.0,0.00732]
[1738748982285,0.046,97258.0,97250.0,0.10982365]
[1738748982510,0.046,97258.0,97251.0,0.10250365]
[1738748982717,0.1286,97258.0,97251.0,0.10250365]
[1738748983395,0.1286,97258.0,97251.0,0.25674265]
[1738748983572,0.1286,97258.0,97251.0,0.10250365]
[1738748984638,0.282828,97258.0,97251.0,0.10250365]
[1738748984834,0.1286,97258.0,97251.0,0.10250365]
[1738748985196,0.1286,97258.0,97251.0,0.25674265]
[1738748985399,0.1286,97258.0,97252.0,0.154238]
[1738748985730,0.1286,97258.0,97253.0,0.10250365]
[1738748985731,0.0826,97258.0,97253.0,0.10250365]
[1738748986616,0.0806,97263.0,97253.0,0.10250365]
[1738748987220,0.0806,97263.0,97254.0,0.205645]
[1738748987398,0.0806,97263.0,97255.0,0.10250365]
[1738748987603,0.0806,97263.0,97257.0,0.15423]
[1738748987811,0.32325,97264.0,97262.0,0.154221]
[1738748988013,0.32325,97264.0,97263.0,0.10250365]
[1738748989078,0.0832,97270.0,97263.0,0.10250365]
[1738748989403,0.154211,97269.0,97263.0,0.10250365]
[1738748989602,0.0832,97270.0,97263.0,0.10250365]
[1738748990162,0.00128517,97269.0,97263.0,0.10250365]
[1738748990389,0.154219,97264.0,97263.0,0.10250365]
[1738748993877,0.15401341,97264.0,97263.0,0.10982365]
[1738748995259,0.154216,97266.0,97263.0,0.10982365]
[1738748995517,0.154216,97266.0,97263.0,0.10250365]
[1738748995722,0.154216,97266.0,97264.0,0.00732]
[1738748995938,0.154216,97266.0,97264.0,0.10982365]
[1738748996693,0.154212,97269.0,97264.0,0.10982365]
[1738748996896,0.154215,97267.0,97264.0,0.10982365]
[1738748997518,0.154212,97269.0,97264.0,0.10982365]
[1738748997717,0.154216,97266.0,97264.0,0.10982365]
[1738748998926,0.154217,97266.0,97264.0,0.10982365]
[1738748999190,0.0832,97270.0,97264.0,0.10982365]
[1738748999406,0.154211,97270.0,97265.0,0.10250365]
[1738748999659,0.154211,97269.0,97265.0,0.10250365]
[1738748999904,0.154214,97268.0,97265.0,0.10250365]
[1738749000134,0.154216,97266.0,97265.0,0.10250365]
[1738749000609,0.205612,97271.0,97265.0,0.10250365]
[1738749000840,0.154217,97265.0,97264.0,0.00732]
[1738749001059,0.0818,97268.0,97257.0,0.00732]
[1738749001232,0.154228,97258.0,97257.0,0.00732]
[1738749001457,0.28691333,97258.0,97257.0,0.00732]
[1738749001679,0.285628,97258.0,97257.0,0.00732]
[1738749002142,0.15423,97257.0,97247.0,0.00732]
[1738749002325,0.154244,97248.0,97247.0,0.10982365]
[1738749004082,0.205646,97255.0,97247.0,0.10982365]
[1738749004328,0.154244,97248.0,97247.0,0.10982365]
[1738749004772,0.154243,97250.0,97247.0,0.10982365]
[1738749005390,0.1314,97258.0,97247.0,0.10982365]
[1738749005569,0.154243,97249.0,97247.0,0.10982365]
[1738749005947,0.154241,97250.0,97247.0,0.10982365]
[1738749006354,0.154229,97258.0,97248.0,0.10250365]
[1738749006570,0.154227,97260.0,97249.0,0.154243]
[1738749006788,0.154227,97260.0,97250.0,0.10250365]
[1738749006953,0.154227,97260.0,97250.0,0.25674365]
[1738749007166,0.1319,97268.0,97250.0,0.10250365]
[1738749007420,0.15423,97258.0,97250.0,0.10250365]
[1738749007964,0.205627,97264.0,97250.0,0.10250365]
[1738749008236,0.154224,97261.0,97251.0,0.15424]
[1738749008387,0.154224,97261.0,97252.0,0.25674065]
[1738749008592,0.0791,97275.0,97252.0,0.10250365]
[1738749008767,0.0791,97275.0,97260.0,0.11336641]
[1738749008968,0.0791,97275.0,97261.0,0.10250365]
[1738749009167,0.154206,97273.0,97263.0,0.15422]
[1738749009376,0.0791,97275.0,97264.0,0.10250365]
[1738749009606,0.154212,97269.0,97264.0,0.10250365]
[1738749009817,0.154213,97268.0,97264.0,0.10250365]
[1738749010018,0.00128515,97273.0,97264.0,0.10250365]
[1738749010225,0.154213,97268.0,97264.0,0.10250365]
[1738749010420,0.154214,97268.0,97264.0,0.10250365]
[1738749010775,0.154217,97266.0,97264.0,0.10250365]
[1738749013211,0.205612,97271.0,97264.0,0.10250365]
[1738749013413,0.154213,97268.0,97264.0,0.10250365]
[1738749013612,0.15421,97270.0,97264.0,0.10250365]
[1738749013858,0.154214,97268.0,97264.0,0.10250365]
[1738749014415,0.15421,97270.0,97264.0,0.10250365]
[1738749014757,0.154214,97268.0,97264.0,0.10250365]
[1738749014959,0.205604,97274.0,97264.0,0.10250365]
[1738749015102,0.154213,97268.0,97264.0,0.10250365]
[1738749015860,0.205612,97271.0,97264.0,0.10250365]
[1738749016159,0.154215,97267.0,97264.0,0.10250365]
[1738749016741,0.154212,97269.0,97264.0,0.10250365]
[1738749016941,0.154207,97272.0,97264.0,0.10250365]
[1738749017142,0.15421,97270.0,97264.0,0.10250365]
[1738749017365,0.154212,97269.0,97264.0,0.10250365]
[1738749017563,0.00128515,97278.0,97264.0,0.10250365]
[1738749017767,0.15421,97270.0,97264.0,0.10250365]
[1738749017971,0.154213,97268.0,97264.0,0.10250365]
[1738749018168,0.154213,97269.0,97264.0,0.10250365]
[1738749018396,0.205612,97271.0,97264.0,0.10250365]
[1738749018629,0.14257295,97281.0,97264.0,0.10250365]
[1738749018842,0.01027295,97281.0,97270.0,0.11336641]
[1738749018979,0.1542,97276.0,97271.0,0.10250365]
[1738749019395,0.2058105,97283.0,97271.0,0.10250365]
[1738749019396,0.0002245,97283.0,97271.0,0.10250365]
[1738749019597,0.0002245,97283.0,97279.0,0.154194]
[1738749019971,0.0002245,97283.0,97280.0,0.10250365]
[1738749022015,0.0002245,97283.0,97280.0,0.25669665]
[1738749022232,0.0002245,97283.0,97282.0,0.15419]
[1738749022548,0.0002245,97283.0,97282.0,0.25669365]
[1738749022750,0.0002245,97283.0,97282.0,0.10250365]
[1738749022927,0.0002245,97283.0,97282.0,0.25669365]
[1738749023321,0.0002245,97283.0,97282.0,0.10250365]
[1738749023528,0.1544135,97283.0,97282.0,0.10250365]
[1738749024937,0.330787,97282.0,97278.0,0.00732]
[1738749025323,0.15421,97270.0,97264.0,0.1543258]
[1738749025521,0.154213,97268.0,97265.0,0.10982365]
[1738749026178,0.154214,97267.0,97265.0,0.10982365]
[1738749026582,0.154214,97267.0,97265.0,0.10250365]
[1738749026852,0.154214,97267.0,97266.0,0.00732]
[1738749027052,0.154214,97267.0,97266.0,0.10982365]
[1738749031402,0.205603,97275.0,97266.0,0.10982365]
[1738749031614,0.32325,97279.0,97266.0,0.10982365]
[1738749031615,0.32325,97279.0,97267.0,0.10250365]
[1738749031823,0.154207,97272.0,97267.0,0.10250365]
[1738749031979,0.154208,97271.0,97267.0,0.10250365]
[1738749032151,0.32325,97279.0,97275.0,0.1542]
[1738749032354,0.32325,97279.0,97276.0,0.10250365]
[1738749032555,0.154197,97278.0,97276.0,0.10250365]
[1738749032963,0.32325,97279.0,97276.0,0.10250365]
[1738749034021,0.32325,97279.0,97277.0,0.00732]
[1738749034220,0.32325,97279.0,97278.0,0.10250365]
[1738749036670,0.154192,97282.0,97278.0,0.10250365]
[1738749036829,0.15419,97282.0,97278.0,0.10250365]
[1738749037417,0.0002245,97283.0,97278.0,0.10250365]
[1738749038149,0.0002245,97283.0,97282.0,0.15419]
[1738749038386,0.0002245,97283.0,97282.0,0.25669365]
[1738749038781,0.0002245,97283.0,97282.0,0.10250365]
[1738749038985,0.0002245,97283.0,97282.0,0.25669365]
[1738749039191,0.0002245,97283.0,97282.0,0.10250365]
[1738749039718,0.0002245,97283.0,97282.0,0.25669365]
[1738749039933,0.0002245,97283.0,97282.0,0.10250365]
[1738749041025,0.0002245,97283.0,97282.0,0.25669365]
[1738749041721,0.0002245,97283.0,97282.0,0.10250365]
[1738749045353,0.0002245,97283.0,97282.0,0.25669365]
[1738749045690,0.0002245,97283.0,97282.0,0.10250365]
[1738749045917,0.0002245,97283.0,97282.0,0.25669365]
[1738749046442,0.0002245,97283.0,97282.0,0.10250365]
[1738749046939,0.0002245,97283.0,97282.0,0.25669365]
[1738749048271,0.0002245,97283.0,97282.0,0.28742741]
[1738749049446,0.0002245,97283.0,97282.0,0.25669365]
[1738749051832,0.0002245,97283.0,97282.0,0.13323518]
[1738749052031,0.0002245,97283.0,97282.0,0.28742518]
[1738749053164,0.0002245,97283.0,97282.0,0.25669365]
[1738749053571,0.0002245,97283.0,97282.0,0.10250365]
[1738749054396,0.0002245,97283.0,97282.0,0.11267477]
[1738749055777,0.0002245,97283.0,97282.0,0.10250365]
[1738749055997,0.1544135,97283.0,97282.0,0.10982365]
[1738749056824,0.1544135,97283.0,97282.0,0.00732]
[1738749057004,0.0818,97282.0,97264.0,0.0001068]
[1738749057203,0.154213,97268.0,97265.0,0.19200938]
[1738749057476,0.00128506,97281.0,97265.0,0.19200938]
[1738749057477,0.0012851,97279.0,97265.0,0.19200938]
[1738749057655,0.154212,97269.0,97265.0,0.10982365]
[1738749057950,0.154211,97270.0,97265.0,0.10982365]
[1738749058107,0.154206,97272.0,97265.0,0.10982365]
[1738749058307,0.00128513,97277.0,97265.0,0.10982365]
[1738749058520,0.154206,97272.0,97265.0,0.10982365]
[1738749058720,0.0818,97282.0,97265.0,0.10982365]
[1738749058721,0.205595,97279.0,97265.0,0.10982365]